[Event "Titled Tuesday Blitz April 4 Early 2023"]
[White "Gold_Ocean"]
[Black "koncheto"]
[WhiteElo "2647"]
[BlackElo "2532"]
[Result "1-0"]
[Round "06"]
[TimeControl "180+2"]
[Date "2023.04.04"]
[WhiteClock "0:00:06"]
[BlackClock "0:00:04"]

1. Nf3 {[%clk 0:02:29]}  Nf6 {[%clk 0:02:30]} 2. d4 {[%clk 0:02:29]}  e6 {[%clk 0:02:31]} 3. Bf4 {[%clk 0:02:26]}  c5 {[%clk 0:02:31]} 4. e3 {[%clk 0:02:12]}  d5 {[%clk 0:02:30]} 5. c3 {[%clk 0:02:11]}  Bd6 {[%clk 0:02:30]} 6. Bg3 {[%clk 0:02:09]}  Qc7 {[%clk 0:02:30]} 7. Bd3 {[%clk 0:02:09]}  Nbd7 {[%clk 0:02:30]} 8. O-O {[%clk 0:02:09]}  O-O {[%clk 0:02:30]} 9. Nbd2 {[%clk 0:02:09]}  Bxg3 {[%clk 0:02:30]} 10. hxg3 {[%clk 0:02:09]}  e5 {[%clk 0:02:31]} 11. dxe5 {[%clk 0:02:06]}  Nxe5 {[%clk 0:02:32]} 12. Nxe5 {[%clk 0:02:06]}  Qxe5 {[%clk 0:02:33]} 13. Nf3 {[%clk 0:02:07]}  Qe6 {[%clk 0:02:33]} 14. Qc2 {[%clk 0:02:07]}  h6 {[%clk 0:02:33]} 15. Rad1 {[%clk 0:02:07]}  b6 {[%clk 0:02:31]} 16. Rfe1 {[%clk 0:02:06]}  Bb7 {[%clk 0:02:31]} 17. Bf5 {[%clk 0:02:07]}  Qe7 {[%clk 0:02:26]} 18. Nh4 {[%clk 0:02:07]}  Rad8 {[%clk 0:02:25]} 19. Bd3 {[%clk 0:02:04]}  Rfe8 {[%clk 0:02:24]} 20. Nf5 {[%clk 0:02:04]}  Qe5 {[%clk 0:02:24]} 21. Qa4 {[%clk 0:02:01]}  a6 {[%clk 0:02:11]} 22. Nh4 {[%clk 0:01:58]}  Ne4 {[%clk 0:02:06]} 23. Nf3 {[%clk 0:01:56]}  Qf6 {[%clk 0:01:41]} 24. Qc2 {[%clk 0:01:41]}  Rd6 {[%clk 0:01:36]} 25. c4 {[%clk 0:01:40]}  dxc4 {[%clk 0:01:31]} 26. Bxc4 {[%clk 0:01:40]}  Red8 {[%clk 0:01:30]} 27. Bd3 {[%clk 0:01:24]}  Ng5 {[%clk 0:01:14]} 28. Nh4 {[%clk 0:01:24]}  Ne6 {[%clk 0:01:02]} 29. e4 {[%clk 0:01:23]}  Nd4 {[%clk 0:00:57]} 30. Qc3 {[%clk 0:01:13]}  Qg5 {[%clk 0:00:43]} 31. e5 {[%clk 0:00:59]}  Rd5 {[%clk 0:00:40]} 32. f4 {[%clk 0:00:57]}  Qg4 {[%clk 0:00:27]} 33. Kh2 {[%clk 0:00:34]}  Qd7 {[%clk 0:00:20]} 34. f5 {[%clk 0:00:20]}  Nb5 {[%clk 0:00:18]} 35. Bxb5 {[%clk 0:00:20]}  Qxb5 {[%clk 0:00:15]} 36. Rxd5 {[%clk 0:00:20]}  Rxd5 {[%clk 0:00:14]} 37. e6 {[%clk 0:00:19]}  fxe6 {[%clk 0:00:13]} 38. fxe6 {[%clk 0:00:19]}  Qd3 {[%clk 0:00:08]} 39. Qxd3 {[%clk 0:00:12]}  Rxd3 {[%clk 0:00:08]} 40. e7 {[%clk 0:00:13]}  Bc6 {[%clk 0:00:09]} 41. e8=Q+ {[%clk 0:00:13]}  Bxe8 {[%clk 0:00:09]} 42. Rxe8+ {[%clk 0:00:14]}  Kf7 {[%clk 0:00:10]} 43. Re2 {[%clk 0:00:12]}  b5 {[%clk 0:00:10]} 44. Nf3 {[%clk 0:00:13]}  Rd5 {[%clk 0:00:08]} 45. Kg1 {[%clk 0:00:13]}  Kf6 {[%clk 0:00:08]} 46. Kf2 {[%clk 0:00:14]}  c4 {[%clk 0:00:08]} 47. Nd2 {[%clk 0:00:14]}  Rd3 {[%clk 0:00:08]} 48. Ne4+ {[%clk 0:00:13]}  Kf5 {[%clk 0:00:07]} 49. Nc5 {[%clk 0:00:09]}  Rd6 {[%clk 0:00:07]} 50. Ne4 {[%clk 0:00:07]}  Rc6 {[%clk 0:00:07]} 51. Nc3 {[%clk 0:00:07]}  b4 {[%clk 0:00:07]} 52. Nd5 {[%clk 0:00:07]}  Rc5 {[%clk 0:00:07]} 53. Nxb4 {[%clk 0:00:08]}  a5 {[%clk 0:00:07]} 54. Nc2 {[%clk 0:00:08]}  Kf6 {[%clk 0:00:07]} 55. Ke3 {[%clk 0:00:08]}  Rb5 {[%clk 0:00:07]} 56. Nd4 {[%clk 0:00:07]}  Rd5 {[%clk 0:00:07]} 57. Rc2 {[%clk 0:00:07]}  Re5+ {[%clk 0:00:07]} 58. Kf2 {[%clk 0:00:08]}  Rc5 {[%clk 0:00:07]} 59. b3 {[%clk 0:00:07]}  Ke5 {[%clk 0:00:03]} 60. Nf3+ {[%clk 0:00:06]}  Ke4 {[%clk 0:00:04]} 61. Rxc4+ {[%clk 0:00:06]}  Rxc4 {[%clk 0:00:04]} 62. bxc4 {[%clk 0:00:06]} 1-0


[Site "https://www.chess.com"]

[Event "Titled Tuesday Blitz April 4 Early 2023"]
[White "Sieciechowicz, Marcin"]
[Black "Forgacs, Attila Jr."]
[WhiteFideId "1130170"]
[BlackFideId "773654"]
[WhiteElo "2302"]
[BlackElo "2168"]
[Result "1-0"]
[Round "06"]
[TimeControl "180+2"]
[Date "2023.04.04"]
[WhiteClock "0:00:59"]
[BlackClock "0:01:25"]

1. d4 {[%clk 0:03:00]}  Nf6 {[%clk 0:02:59]} 2. c4 {[%clk 0:03:00]}  g6 {[%clk 0:02:59]} 3. Nc3 {[%clk 0:03:01]}  d5 {[%clk 0:02:59]} 4. Nf3 {[%clk 0:02:59]}  Bg7 {[%clk 0:02:58]} 5. Qb3 {[%clk 0:02:59]}  dxc4 {[%clk 0:02:55]} 6. Qxc4 {[%clk 0:03:00]}  O-O {[%clk 0:02:55]} 7. e4 {[%clk 0:02:57]}  Na6 {[%clk 0:02:55]} 8. Be2 {[%clk 0:02:49]}  c5 {[%clk 0:02:52]} 9. d5 {[%clk 0:02:49]}  e6 {[%clk 0:02:52]} 10. O-O {[%clk 0:02:47]}  exd5 {[%clk 0:02:52]} 11. exd5 {[%clk 0:02:48]}  Bf5 {[%clk 0:02:53]} 12. Rd1 {[%clk 0:02:42]}  Qb6 {[%clk 0:02:48]} 13. h3 {[%clk 0:02:31]}  Rad8 {[%clk 0:02:48]} 14. g4 {[%clk 0:02:27]}  Bc8 {[%clk 0:02:48]} 15. a3 {[%clk 0:02:27]}  Rfe8 {[%clk 0:02:43]} 16. Bf4 {[%clk 0:02:27]}  h5 {[%clk 0:02:29]} 17. Ne5 {[%clk 0:01:34]}  hxg4 {[%clk 0:02:21]} 18. hxg4 {[%clk 0:01:35]}  Nd7 {[%clk 0:01:58]} 19. Nxf7 {[%clk 0:01:13]}  Kxf7 {[%clk 0:01:58]} 20. d6+ {[%clk 0:01:13]}  Kf8 {[%clk 0:01:53]} 21. Nd5 {[%clk 0:01:14]}  Qxb2 {[%clk 0:01:49]} 22. Ne7 {[%clk 0:01:13]}  Rxe7 {[%clk 0:01:31]} 23. dxe7+ {[%clk 0:01:11]}  Kxe7 {[%clk 0:01:32]} 24. Bd6+ {[%clk 0:01:00]}  Kf6 {[%clk 0:01:26]} 25. Qf4+ {[%clk 0:00:58]}  Ke6 {[%clk 0:01:25]} 26. Bc4# {[%clk 0:00:59]} 1-0


[Site "https://www.chess.com"]

[Event "Titled Tuesday Blitz April 4 Early 2023"]
[White "Ljukin, Sergei"]
[Black "Hamitevici, Vladimir"]
[WhiteFideId "14102200"]
[BlackFideId "13902393"]
[WhiteElo "2312"]
[BlackElo "2401"]
[Result "0-1"]
[Round "06"]
[TimeControl "180+2"]
[Date "2023.04.04"]
[WhiteClock "0:00:05"]
[BlackClock "0:00:38"]

1. e4 {[%clk 0:02:54]}  d6 {[%clk 0:02:56]} 2. d4 {[%clk 0:02:54]}  g6 {[%clk 0:02:56]} 3. Nc3 {[%clk 0:02:54]}  a6 {[%clk 0:02:55]} 4. f4 {[%clk 0:02:54]}  b5 {[%clk 0:02:55]} 5. Nf3 {[%clk 0:02:54]}  Bb7 {[%clk 0:02:53]} 6. Bd3 {[%clk 0:02:55]}  Nd7 {[%clk 0:02:47]} 7. O-O {[%clk 0:02:51]}  c5 {[%clk 0:02:44]} 8. e5 {[%clk 0:02:33]}  cxd4 {[%clk 0:02:38]} 9. Nxd4 {[%clk 0:02:33]}  dxe5 {[%clk 0:02:36]} 10. fxe5 {[%clk 0:02:32]}  Nxe5 {[%clk 0:02:35]} 11. Be4 {[%clk 0:02:32]}  Bxe4 {[%clk 0:02:21]} 12. Nxe4 {[%clk 0:02:31]}  Bg7 {[%clk 0:02:13]} 13. Ng5 {[%clk 0:01:36]}  Qd5 {[%clk 0:01:53]} 14. Nf5 {[%clk 0:01:00]}  O-O-O {[%clk 0:01:24]} 15. Qxd5 {[%clk 0:00:57]}  Rxd5 {[%clk 0:01:25]} 16. Nxg7 {[%clk 0:00:57]}  Nf6 {[%clk 0:01:22]} 17. Bf4 {[%clk 0:00:50]}  Rf8 {[%clk 0:01:12]} 18. Rad1 {[%clk 0:00:27]}  Rxd1 {[%clk 0:01:08]} 19. Rxd1 {[%clk 0:00:26]}  Ned7 {[%clk 0:01:09]} 20. Rd4 {[%clk 0:00:16]}  Rg8 {[%clk 0:01:08]} 21. Nxf7 {[%clk 0:00:14]}  Rxg7 {[%clk 0:01:08]} 22. Ne5 {[%clk 0:00:14]}  Nxe5 {[%clk 0:01:03]} 23. Bxe5 {[%clk 0:00:14]}  Rf7 {[%clk 0:01:03]} 24. c4 {[%clk 0:00:14]}  Nd7 {[%clk 0:01:02]} 25. Bg3 {[%clk 0:00:13]}  Rf5 {[%clk 0:00:56]} 26. cxb5 {[%clk 0:00:12]}  axb5 {[%clk 0:00:53]} 27. b4 {[%clk 0:00:10]}  e5 {[%clk 0:00:45]} 28. Rd5 {[%clk 0:00:08]}  e4 {[%clk 0:00:45]} 29. Rxf5 {[%clk 0:00:07]}  gxf5 {[%clk 0:00:46]} 30. Kf2 {[%clk 0:00:08]}  Nf6 {[%clk 0:00:40]} 31. Be5 {[%clk 0:00:05]}  Ng4+ {[%clk 0:00:38]} 0-1


[Site "https://www.chess.com"]

[Event "Titled Tuesday Blitz April 4 Early 2023"]
[White "Vaibhav Jayant Raut"]
[Black "Shevtchenko, Olesya"]
[WhiteFideId "5089034"]
[BlackFideId "24131890"]
[WhiteElo "2156"]
[BlackElo "2003"]
[Result "1-0"]
[Round "06"]
[TimeControl "180+2"]
[Date "2023.04.04"]
[WhiteClock "0:00:18"]
[BlackClock "0:00:02"]

1. d4 {[%clk 0:03:00]}  Nf6 {[%clk 0:02:59]} 2. Nf3 {[%clk 0:02:57]}  d5 {[%clk 0:02:59]} 3. Bf4 {[%clk 0:02:57]}  c5 {[%clk 0:02:59]} 4. e3 {[%clk 0:02:57]}  Nc6 {[%clk 0:03:00]} 5. Nbd2 {[%clk 0:02:57]}  Nh5 {[%clk 0:03:00]} 6. Bg5 {[%clk 0:02:53]}  h6 {[%clk 0:02:59]} 7. Bh4 {[%clk 0:02:53]}  g5 {[%clk 0:02:59]} 8. Bg3 {[%clk 0:02:53]}  Nxg3 {[%clk 0:02:59]} 9. hxg3 {[%clk 0:02:54]}  Bg7 {[%clk 0:02:59]} 10. c3 {[%clk 0:02:54]}  Qd6 {[%clk 0:02:55]} 11. Bb5 {[%clk 0:02:51]}  Bd7 {[%clk 0:02:54]} 12. Qa4 {[%clk 0:02:45]}  a6 {[%clk 0:02:53]} 13. Qa3 {[%clk 0:02:44]}  cxd4 {[%clk 0:02:15]} 14. Qxd6 {[%clk 0:02:40]}  exd6 {[%clk 0:02:15]} 15. Bxc6 {[%clk 0:02:40]}  bxc6 {[%clk 0:02:16]} 16. Nxd4 {[%clk 0:02:36]}  c5 {[%clk 0:02:15]} 17. N4f3 {[%clk 0:02:32]}  Rb8 {[%clk 0:02:14]} 18. O-O-O {[%clk 0:02:29]}  Bf5 {[%clk 0:02:03]} 19. e4 {[%clk 0:02:22]}  dxe4 {[%clk 0:02:00]} 20. Nc4 {[%clk 0:02:23]}  O-O {[%clk 0:01:31]} 21. Nxd6 {[%clk 0:02:21]}  Bg6 {[%clk 0:01:28]} 22. Nd2 {[%clk 0:02:16]}  f5 {[%clk 0:01:24]} 23. g4 {[%clk 0:02:07]}  fxg4 {[%clk 0:01:21]} 24. N2xe4 {[%clk 0:02:02]}  Be5 {[%clk 0:01:10]} 25. g3 {[%clk 0:01:43]}  Kg7 {[%clk 0:01:05]} 26. Rhe1 {[%clk 0:01:40]}  Rbd8 {[%clk 0:01:02]} 27. Nc4 {[%clk 0:01:35]}  Rxd1+ {[%clk 0:01:01]} 28. Kxd1 {[%clk 0:01:31]}  Rd8+ {[%clk 0:01:00]} 29. Kc1 {[%clk 0:01:30]}  Bf6 {[%clk 0:00:54]} 30. Nxc5 {[%clk 0:01:24]}  Rc8 {[%clk 0:00:47]} 31. Ne6+ {[%clk 0:01:23]}  Kg8 {[%clk 0:00:48]} 32. Ne5 {[%clk 0:00:46]}  Bf5 {[%clk 0:00:44]} 33. Nd4 {[%clk 0:00:45]}  Bxe5 {[%clk 0:00:35]} 34. Rxe5 {[%clk 0:00:46]}  Bd7 {[%clk 0:00:35]} 35. Re7 {[%clk 0:00:37]}  Be8 {[%clk 0:00:30]} 36. Re6 {[%clk 0:00:36]}  h5 {[%clk 0:00:28]} 37. Re5 {[%clk 0:00:30]}  Kg7 {[%clk 0:00:16]} 38. Rxg5+ {[%clk 0:00:30]}  Kh6 {[%clk 0:00:15]} 39. Re5 {[%clk 0:00:30]}  Bf7 {[%clk 0:00:15]} 40. Rf5 {[%clk 0:00:27]}  Kg6 {[%clk 0:00:15]} 41. Ra5 {[%clk 0:00:27]}  Bc4 {[%clk 0:00:13]} 42. b3 {[%clk 0:00:24]}  Bf1 {[%clk 0:00:13]} 43. c4 {[%clk 0:00:24]}  Rf8 {[%clk 0:00:13]} 44. Rxa6+ {[%clk 0:00:24]}  Kh7 {[%clk 0:00:14]} 45. Ra5 {[%clk 0:00:22]}  Kg6 {[%clk 0:00:14]} 46. c5 {[%clk 0:00:19]}  Rxf2 {[%clk 0:00:13]} 47. c6 {[%clk 0:00:19]}  Rf8 {[%clk 0:00:10]} 48. c7 {[%clk 0:00:20]}  Rc8 {[%clk 0:00:09]} 49. Rc5 {[%clk 0:00:20]}  h4 {[%clk 0:00:10]} 50. gxh4 {[%clk 0:00:18]}  g3 {[%clk 0:00:10]} 51. Rg5+ {[%clk 0:00:17]}  Kf6 {[%clk 0:00:09]} 52. Rxg3 {[%clk 0:00:17]}  Rxc7+ {[%clk 0:00:10]} 53. Kb2 {[%clk 0:00:18]}  Ke5 {[%clk 0:00:08]} 54. Nc2 {[%clk 0:00:15]}  Kf4 {[%clk 0:00:08]} 55. Rc3 {[%clk 0:00:15]}  Ra7 {[%clk 0:00:05]} 56. a4 {[%clk 0:00:15]}  Bg2 {[%clk 0:00:05]} 57. Ne3 {[%clk 0:00:15]}  Be4 {[%clk 0:00:04]} 58. Nc4 {[%clk 0:00:15]}  Kg4 {[%clk 0:00:04]} 59. Nd6 {[%clk 0:00:15]}  Bg2 {[%clk 0:00:03]} 60. Nb5 {[%clk 0:00:15]}  Rd7 {[%clk 0:00:02]} 61. a5 {[%clk 0:00:15]}  Kxh4 {[%clk 0:00:03]} 62. Rc2 {[%clk 0:00:15]}  Bb7 {[%clk 0:00:02]} 63. Rc4+ {[%clk 0:00:15]}  Kg3 {[%clk 0:00:02]} 64. Nc3 {[%clk 0:00:16]}  Ba6 {[%clk 0:00:02]} 65. Rc6 {[%clk 0:00:16]}  Bb7 {[%clk 0:00:02]} 66. Rg6+ {[%clk 0:00:17]}  Kf2 {[%clk 0:00:02]} 67. Rb6 {[%clk 0:00:18]}  Ke3 {[%clk 0:00:03]} 68. a6 {[%clk 0:00:17]}  Bxa6 {[%clk 0:00:02]} 69. Rxa6 {[%clk 0:00:18]} 1-0


[Site "https://www.chess.com"]

[Event "Titled Tuesday Blitz April 4 Early 2023"]
[White "Topalov, Aleksandar"]
[Black "Ozates, Tuna"]
[WhiteFideId "925659"]
[BlackFideId "6354521"]
[WhiteElo "2151"]
[BlackElo "2151"]
[Result "0-1"]
[Round "06"]
[TimeControl "180+2"]
[Date "2023.04.04"]
[WhiteClock "0:00:01"]
[BlackClock "0:00:09"]

1. b3 {[%clk 0:03:00]}  c5 {[%clk 0:02:59]} 2. Bb2 {[%clk 0:03:00]}  Nc6 {[%clk 0:02:59]} 3. Nf3 {[%clk 0:03:00]}  d6 {[%clk 0:02:59]} 4. d4 {[%clk 0:02:59]}  cxd4 {[%clk 0:02:59]} 5. Nxd4 {[%clk 0:02:59]}  e5 {[%clk 0:03:00]} 6. Nxc6 {[%clk 0:02:59]}  bxc6 {[%clk 0:03:01]} 7. c4 {[%clk 0:02:59]}  Nf6 {[%clk 0:03:01]} 8. g3 {[%clk 0:02:59]}  Be7 {[%clk 0:02:59]} 9. Bg2 {[%clk 0:02:59]}  Bd7 {[%clk 0:02:58]} 10. O-O {[%clk 0:02:57]}  O-O {[%clk 0:02:58]} 11. c5 {[%clk 0:02:57]}  Qc7 {[%clk 0:02:56]} 12. cxd6 {[%clk 0:02:55]}  Bxd6 {[%clk 0:02:56]} 13. Nc3 {[%clk 0:02:51]}  Rad8 {[%clk 0:02:55]} 14. Rc1 {[%clk 0:02:51]}  a6 {[%clk 0:02:49]} 15. Qc2 {[%clk 0:02:48]}  g6 {[%clk 0:02:44]} 16. Rfd1 {[%clk 0:02:48]}  Bf5 {[%clk 0:02:44]} 17. Ne4 {[%clk 0:02:40]}  Be7 {[%clk 0:02:43]} 18. Nxf6+ {[%clk 0:02:31]}  Bxf6 {[%clk 0:02:43]} 19. e4 {[%clk 0:02:31]}  Bg4 {[%clk 0:02:40]} 20. f3 {[%clk 0:02:29]}  Rxd1+ {[%clk 0:02:32]} 21. Rxd1 {[%clk 0:02:23]}  Be6 {[%clk 0:02:33]} 22. Qc5 {[%clk 0:02:10]}  Rd8 {[%clk 0:02:24]} 23. Rxd8+ {[%clk 0:01:56]}  Qxd8 {[%clk 0:02:23]} 24. Bxe5 {[%clk 0:01:54]}  Qd1+ {[%clk 0:02:20]} 25. Kf2 {[%clk 0:01:54]}  Qd2+ {[%clk 0:01:20]} 26. Kf1 {[%clk 0:01:50]}  Bxe5 {[%clk 0:00:54]} 27. Qxe5 {[%clk 0:01:49]}  Qxa2 {[%clk 0:00:53]} 28. Qb8+ {[%clk 0:01:49]}  Kg7 {[%clk 0:00:53]} 29. Qe5+ {[%clk 0:01:49]}  Kf8 {[%clk 0:00:53]} 30. Qd6+ {[%clk 0:01:48]}  Kg8 {[%clk 0:00:51]} 31. Qb8+ {[%clk 0:01:47]}  Kg7 {[%clk 0:00:52]} 32. Qe5+ {[%clk 0:01:47]}  Kf8 {[%clk 0:00:47]} 33. Qd6+ {[%clk 0:01:47]}  Ke8 {[%clk 0:00:45]} 34. Qxc6+ {[%clk 0:01:47]}  Kd8 {[%clk 0:00:45]} 35. Qd6+ {[%clk 0:01:46]}  Kc8 {[%clk 0:00:45]} 36. Qc6+ {[%clk 0:01:46]}  Kd8 {[%clk 0:00:43]} 37. Qd6+ {[%clk 0:01:47]}  Bd7 {[%clk 0:00:44]} 38. Bh3 {[%clk 0:01:24]}  Qb1+ {[%clk 0:00:40]} 39. Kf2 {[%clk 0:01:19]}  Qc2+ {[%clk 0:00:40]} 40. Kf1 {[%clk 0:01:12]}  Qc1+ {[%clk 0:00:30]} 41. Kf2 {[%clk 0:01:10]}  Qb2+ {[%clk 0:00:30]} 42. Kf1 {[%clk 0:01:09]}  f5 {[%clk 0:00:30]} 43. Qf8+ {[%clk 0:00:51]}  Kc7 {[%clk 0:00:29]} 44. Qc5+ {[%clk 0:00:51]}  Kb7 {[%clk 0:00:27]} 45. Kg1 {[%clk 0:00:16]}  Qb1+ {[%clk 0:00:19]} 46. Bf1 {[%clk 0:00:14]}  Bb5 {[%clk 0:00:17]} 47. Qe7+ {[%clk 0:00:12]}  Kc6 {[%clk 0:00:16]} 48. Qe6+ {[%clk 0:00:09]}  Kc5 {[%clk 0:00:17]} 49. Qd5+ {[%clk 0:00:08]}  Kb4 {[%clk 0:00:17]} 50. Qd2+ {[%clk 0:00:07]}  Kxb3 {[%clk 0:00:16]} 51. Qd5+ {[%clk 0:00:06]}  Ka4 {[%clk 0:00:14]} 52. Qd4+ {[%clk 0:00:01]}  Qb4 {[%clk 0:00:09]} 0-1


[Site "https://www.chess.com"]

[Event "Titled Tuesday Blitz April 4 Early 2023"]
[White "Guzman Moneo, Alberto"]
[Black "Gontcharov, Vladislav"]
[WhiteFideId "2209616"]
[BlackFideId "4123492"]
[WhiteElo "2157"]
[BlackElo "2420"]
[Result "1/2-1/2"]
[Round "06"]
[TimeControl "180+2"]
[Date "2023.04.04"]
[WhiteClock "0:00:20"]
[BlackClock "0:00:10"]

1. e4 {[%clk 0:03:00]}  e6 {[%clk 0:02:57]} 2. d3 {[%clk 0:03:00]}  d5 {[%clk 0:02:55]} 3. Nd2 {[%clk 0:03:01]}  c5 {[%clk 0:02:54]} 4. Ngf3 {[%clk 0:03:01]}  Nc6 {[%clk 0:02:54]} 5. g3 {[%clk 0:03:01]}  g6 {[%clk 0:02:54]} 6. Bg2 {[%clk 0:03:01]}  Bg7 {[%clk 0:02:54]} 7. O-O {[%clk 0:03:01]}  Nf6 {[%clk 0:02:53]} 8. Re1 {[%clk 0:02:57]}  O-O {[%clk 0:02:52]} 9. exd5 {[%clk 0:02:52]}  exd5 {[%clk 0:02:45]} 10. Nb3 {[%clk 0:02:50]}  b6 {[%clk 0:02:43]} 11. Bf4 {[%clk 0:02:46]}  Bb7 {[%clk 0:02:33]} 12. Ne5 {[%clk 0:02:43]}  Nxe5 {[%clk 0:02:32]} 13. Bxe5 {[%clk 0:02:43]}  Qd7 {[%clk 0:02:25]} 14. d4 {[%clk 0:02:30]}  c4 {[%clk 0:01:54]} 15. Nd2 {[%clk 0:02:30]}  c3 {[%clk 0:01:54]} 16. bxc3 {[%clk 0:02:29]}  Rac8 {[%clk 0:01:54]} 17. Nb1 {[%clk 0:02:16]}  Ne4 {[%clk 0:01:50]} 18. Bxg7 {[%clk 0:02:14]}  Kxg7 {[%clk 0:01:49]} 19. Re3 {[%clk 0:02:08]}  f5 {[%clk 0:01:44]} 20. f3 {[%clk 0:02:04]}  Nd6 {[%clk 0:01:43]} 21. Nd2 {[%clk 0:01:50]}  f4 {[%clk 0:01:34]} 22. Re5 {[%clk 0:01:44]}  Nb5 {[%clk 0:01:27]} 23. Nb1 {[%clk 0:01:38]}  Rf7 {[%clk 0:01:10]} 24. g4 {[%clk 0:01:34]}  Nxc3 {[%clk 0:01:02]} 25. Nxc3 {[%clk 0:01:33]}  Rxc3 {[%clk 0:01:01]} 26. Qd2 {[%clk 0:01:32]}  Qc7 {[%clk 0:00:57]} 27. Rc1 {[%clk 0:01:31]}  b5 {[%clk 0:00:54]} 28. Bf1 {[%clk 0:01:21]}  b4 {[%clk 0:00:52]} 29. Bd3 {[%clk 0:01:19]}  Qb6 {[%clk 0:00:51]} 30. Qf2 {[%clk 0:01:18]}  Rfc7 {[%clk 0:00:51]} 31. Rce1 {[%clk 0:01:16]}  Rf7 {[%clk 0:00:45]} 32. h4 {[%clk 0:01:15]}  Ba6 {[%clk 0:00:38]} 33. Re6 {[%clk 0:01:11]}  Rc6 {[%clk 0:00:38]} 34. Rxc6 {[%clk 0:01:03]}  Qxc6 {[%clk 0:00:34]} 35. Qe2 {[%clk 0:00:55]}  Bxd3 {[%clk 0:00:34]} 36. Qxd3 {[%clk 0:00:55]}  Rc7 {[%clk 0:00:32]} 37. g5 {[%clk 0:00:49]}  Qxc2 {[%clk 0:00:17]} 38. Re7+ {[%clk 0:00:49]}  Kf8 {[%clk 0:00:16]} 39. Qxc2 {[%clk 0:00:44]}  Rxc2 {[%clk 0:00:16]} 40. Rxa7 {[%clk 0:00:43]}  Rd2 {[%clk 0:00:16]} 41. Rxh7 {[%clk 0:00:32]}  Rxa2 {[%clk 0:00:15]} 42. Rb7 {[%clk 0:00:32]}  Rb2 {[%clk 0:00:16]} 43. Rb6 {[%clk 0:00:29]}  Kf7 {[%clk 0:00:12]} 44. Rf6+ {[%clk 0:00:29]}  Kg7 {[%clk 0:00:13]} 45. Rb6 {[%clk 0:00:28]}  b3 {[%clk 0:00:12]} 46. Kf1 {[%clk 0:00:28]}  Rb1+ {[%clk 0:00:10]} 47. Ke2 {[%clk 0:00:28]}  b2 {[%clk 0:00:11]} 48. Kd3 {[%clk 0:00:26]}  Rf1 {[%clk 0:00:10]} 49. Rxb2 {[%clk 0:00:25]}  Rxf3+ {[%clk 0:00:11]} 50. Ke2 {[%clk 0:00:25]}  Rh3 {[%clk 0:00:11]} 51. Rb7+ {[%clk 0:00:24]}  Kg8 {[%clk 0:00:11]} 52. Rb6 {[%clk 0:00:24]}  Kg7 {[%clk 0:00:09]} 53. Rb7+ {[%clk 0:00:24]}  Kg8 {[%clk 0:00:08]} 54. Rd7 {[%clk 0:00:23]}  Rxh4 {[%clk 0:00:07]} 55. Rxd5 {[%clk 0:00:23]}  Rh3 {[%clk 0:00:07]} 56. Rd6 {[%clk 0:00:17]}  Re3+ {[%clk 0:00:05]} 57. Kf2 {[%clk 0:00:17]}  Rg3 {[%clk 0:00:05]} 58. Rxg6+ {[%clk 0:00:16]}  Kh7 {[%clk 0:00:05]} 59. Rf6 {[%clk 0:00:16]}  Rxg5 {[%clk 0:00:05]} 60. Rxf4 {[%clk 0:00:16]}  Kg6 {[%clk 0:00:05]} 61. Kf3 {[%clk 0:00:15]}  Rf5 {[%clk 0:00:05]} 62. Ke4 {[%clk 0:00:14]}  Rxf4+ {[%clk 0:00:05]} 63. Kxf4 {[%clk 0:00:14]}  Kf6 {[%clk 0:00:06]} 64. Ke4 {[%clk 0:00:15]}  Ke6 {[%clk 0:00:06]} 65. d5+ {[%clk 0:00:13]}  Kd6 {[%clk 0:00:06]} 66. Kd4 {[%clk 0:00:13]}  Kd7 {[%clk 0:00:07]} 67. Ke5 {[%clk 0:00:14]}  Ke7 {[%clk 0:00:07]} 68. d6+ {[%clk 0:00:14]}  Kd7 {[%clk 0:00:07]} 69. Kd5 {[%clk 0:00:15]}  Kd8 {[%clk 0:00:08]} 70. Kc5 {[%clk 0:00:15]}  Kd7 {[%clk 0:00:08]} 71. Kd5 {[%clk 0:00:16]}  Kd8 {[%clk 0:00:09]} 72. Kd4 {[%clk 0:00:16]}  Kd7 {[%clk 0:00:09]} 73. Kc5 {[%clk 0:00:17]}  Kd8 {[%clk 0:00:09]} 74. Kd5 {[%clk 0:00:17]}  Kd7 {[%clk 0:00:10]} 75. Ke5 {[%clk 0:00:17]}  Kd8 {[%clk 0:00:10]} 76. Ke6 {[%clk 0:00:18]}  Ke8 {[%clk 0:00:10]} 77. d7+ {[%clk 0:00:19]}  Kd8 {[%clk 0:00:10]} 78. Kd6 {[%clk 0:00:20]} 1/2-1/2


[Site "https://www.chess.com"]

[Event "Titled Tuesday Blitz April 4 Early 2023"]
[White "Gabdrakhmanov, Azat"]
[Black "Fernandez Sanchez, Mario Andres"]
[WhiteFideId "34189197"]
[BlackFideId "6501621"]
[WhiteElo "2306"]
[BlackElo "2050"]
[Result "1-0"]
[Round "06"]
[TimeControl "180+2"]
[Date "2023.04.04"]
[WhiteClock "0:01:08"]
[BlackClock "0:01:39"]

1. e4 {[%clk 0:03:00]}  c5 {[%clk 0:02:59]} 2. Nf3 {[%clk 0:02:59]}  Nc6 {[%clk 0:03:00]} 3. d4 {[%clk 0:02:59]}  cxd4 {[%clk 0:03:01]} 4. Nxd4 {[%clk 0:02:59]}  g6 {[%clk 0:03:01]} 5. Nc3 {[%clk 0:02:59]}  Bg7 {[%clk 0:03:00]} 6. Nb3 {[%clk 0:03:00]}  d6 {[%clk 0:02:59]} 7. Be2 {[%clk 0:02:59]}  Nf6 {[%clk 0:03:00]} 8. O-O {[%clk 0:02:59]}  O-O {[%clk 0:02:59]} 9. Re1 {[%clk 0:03:00]}  a6 {[%clk 0:02:58]} 10. Bf1 {[%clk 0:02:58]}  b5 {[%clk 0:02:58]} 11. Bg5 {[%clk 0:02:58]}  Bb7 {[%clk 0:02:56]} 12. Nd5 {[%clk 0:02:59]}  Nd7 {[%clk 0:02:51]} 13. c3 {[%clk 0:02:55]}  Re8 {[%clk 0:02:52]} 14. a4 {[%clk 0:02:45]}  h6 {[%clk 0:02:46]} 15. Be3 {[%clk 0:02:26]}  b4 {[%clk 0:02:05]} 16. Qd2 {[%clk 0:02:09]}  a5 {[%clk 0:01:58]} 17. Bxh6 {[%clk 0:02:05]}  bxc3 {[%clk 0:01:47]} 18. bxc3 {[%clk 0:02:06]}  Nce5 {[%clk 0:01:48]} 19. Bxg7 {[%clk 0:01:50]}  Kxg7 {[%clk 0:01:48]} 20. Nd4 {[%clk 0:01:43]}  Nc5 {[%clk 0:01:43]} 21. Rab1 {[%clk 0:01:33]}  e6 {[%clk 0:01:39]} 22. Nf4 {[%clk 0:01:18]}  Qg5 {[%clk 0:01:39]} 23. Nfxe6+ {[%clk 0:01:08]} 1-0


[Site "https://www.chess.com"]